bitfinex-derivatives/quotes_ETHF0:USTF0_20240829
["timestamp","ask_amount","ask_price","bid_price","bid_amount"]
[1724899197873,0.00595132,2523.8,2523.5,3.60397]
[1724899198170,0.00595132,2523.8,2523.6,0.39615]
[1724899198371,0.00595132,2523.8,2523.5,3.2078]
[1724899198764,0.40208132,2523.8,2523.5,3.2078]
[1724899198967,0.39616,2523.6,2523.2,0.00595132]
[1724899199374,0.39618,2523.5,2523.2,40.80595132]
[1724899199570,0.76878,2523.5,2523.2,0.00595132]
[1724899200271,0.3962,2523.3,2523.2,0.00595132]
[1724899200572,0.76878,2523.5,2523.2,0.00595132]
[1724899201264,0.39619,2523.4,2523.2,0.00595132]
[1724899201572,0.3962,2523.3,2523.2,0.00595132]
[1724899201963,0.3726,2523.5,2523.2,0.00595132]
[1724899202563,0.3962,2523.3,2523.2,0.00595132]
[1724899202978,0.3726,2523.5,2523.2,0.00595132]
[1724899203171,0.40209132,2523.8,2523.3,0.39619]
[1724899203664,0.39614,2523.7,2523.3,0.39619]
[1724899203869,0.00595132,2523.8,2523.3,0.3962]
[1724899204069,0.00595132,2523.8,2523.2,4.97216132]
[1724899204269,0.40209132,2523.8,2523.3,3.60399]
[1724899204470,0.00595132,2523.8,2523.5,4.57]
[1724899204671,0.00595132,2523.8,2523.6,0.39614]
[1724899205477,0.00595132,2523.8,2523.5,4.96616]
[1724899205666,0.00595132,2523.8,2523.5,4.57]
[1724899206375,0.40207132,2523.8,2523.5,4.57]
[1724899206773,0.00595132,2523.8,2523.5,4.57]
[1724899207078,0.40208132,2523.8,2523.3,3.60399]
[1724899207387,0.40208132,2523.8,2523.3,3.604]
[1724899207388,0.39615,2523.7,2523.3,3.604]
[1724899208179,0.39615,2523.7,2523.3,0.3962]
[1724899208381,0.39616,2523.6,2523.3,0.3962]
[1724899208573,0.39616,2523.6,2523.2,4.97216132]
[1724899209584,0.39615,2523.7,2523.3,0.3962]
[1724899209973,0.39616,2523.6,2523.4,3.43]
[1724899210984,0.00595132,2523.8,2523.5,0.39617]
[1724899210985,0.40208132,2523.8,2523.5,0.39617]
[1724899211180,0.00595132,2523.8,2523.5,0.39617]
[1724899211389,0.00595132,2523.8,2523.6,3.82616]
[1724899212184,0.00595132,2523.8,2523.7,0.39614]
[1724899212489,0.00595132,2523.8,2523.7,4.35854]
[1724899213084,0.78291,2524.6,2524.2,0.39606]
[1724899213285,0.39602,2524.5,2524.3,3.43]
[1724899214083,0.39602,2524.5,2524.2,4.96606]
[1724899214277,0.39603,2524.4,2524.2,4.57]
[1724899214493,0.39609,2524.0,2523.9,3.2078]
[1724899214980,9.9624,2524.0,2523.0,9.1461]
[1724899215184,0.3962,2523.4,2523.0,12.75014]
[1724899215387,0.3962,2523.3,2523.0,12.3539]
[1724899215684,0.3962,2523.3,2523.0,7.3988]
[1724899215889,4.3594,2523.3,2523.0,7.3988]
[1724899216776,3.2078,2523.6,2523.2,0.40216132]
[1724899216977,3.60397,2523.6,2523.2,0.40216132]
[1724899217182,3.2078,2523.6,2523.3,0.3962]
[1724899217380,3.60396,2523.6,2523.3,0.3962]
[1724899217581,0.39617,2523.5,2523.2,0.00595132]
[1724899218085,3.2078,2523.6,2523.2,0.00595132]
[1724899219084,0.3962,2523.3,2523.2,0.00595132]
[1724899219483,0.39618,2523.5,2523.2,0.00595132]
[1724899220688,0.39619,2523.4,2523.2,0.00595132]
[1724899221886,0.3962,2523.3,2523.2,0.00595132]
[1724899222273,4.3594,2523.3,2523.2,0.00595132]
[1724899222784,8.55771,2523.3,2523.2,0.00595132]
[1724899223181,5.34991,2523.3,2523.2,0.00595132]
[1724899223383,8.55771,2523.3,2523.2,0.00595132]
[1724899223686,9.30921,2523.3,2523.2,0.00595132]
[1724899223983,5.1109,2523.3,2523.2,0.00595132]
[1724899224186,6.10141,2523.3,2523.2,0.00595132]
[1724899225491,9.30921,2523.3,2523.2,0.00595132]
[1724899228791,6.10141,2523.3,2523.2,0.00595132]
[1724899229687,6.10141,2523.3,2522.6,3.2078]
[1724899229688,0.3963,2522.7,2522.6,3.2078]
[1724899229986,0.39636,2522.3,2522.2,0.3834]
[1724899230187,0.39641,2522.1,2521.8,4.191]
[1724899230388,0.39642,2522.0,2521.9,40.8]
[1724899230591,0.39642,2521.9,2521.7,0.74905132]
[1724899230896,0.39642,2521.9,2521.7,7.92245132]
[1724899231098,0.39644,2521.8,2521.7,7.92245132]
[1724899231391,0.00595132,2522.2,2521.7,3.95685132]
[1724899231593,0.39641,2522.0,2521.7,3.95685132]
[1724899232095,0.39641,2522.0,2521.7,4.35330132]
[1724899232487,0.00595132,2522.2,2521.7,4.35330132]
[1724899232687,0.39641,2522.1,2521.7,4.35330132]
[1724899233191,0.39641,2522.0,2521.7,4.35330132]
[1724899233694,0.3964,2522.1,2521.7,4.35330132]
[1724899234084,0.3964,2522.1,2521.8,3.43]
[1724899234289,0.00595132,2522.2,2522.0,3.43]
[1724899234493,0.00595132,2522.2,2522.1,4.36119]
[1724899234690,0.00595132,2522.2,2522.1,4.72809]
[1724899237091,0.00595132,2522.2,2522.1,0.39639]
[1724899237691,0.00595132,2522.2,2522.1,4.36119]
[1724899240996,0.00595132,2522.2,2522.1,7.56899]
[1724899243908,0.00595132,2522.2,2522.1,3.60419]
[1724899244211,0.00595132,2522.2,2522.0,0.39639]
[1724899244401,0.00595132,2522.2,2522.1,0.39639]
[1724899247913,0.00595132,2522.2,2521.8,7.7778]
[1724899247914,0.39642,2521.9,2521.8,3.2078]
[1724899248907,5.35308,2521.9,2521.8,3.2078]
[1724899249209,0.39644,2521.8,2521.7,0.00595132]
[1724899249706,4.36204,2521.8,2521.7,0.00595132]
[1724899251302,4.75114,2521.8,2521.7,0.00595132]
[1724899251694,5.74224,2521.8,2521.7,0.00595132]
[1724899252502,4.75114,2521.8,2521.7,0.00595132]
[1724899252701,0.78554,2521.8,2521.7,0.00595132]
[1724899253004,0.39644,2521.8,2521.7,0.00595132]
[1724899253204,0.99102,2522.1,2521.7,0.00595132]
[1724899253205,0.39643,2521.9,2521.7,0.00595132]
[1724899253407,11.22275132,2522.2,2521.7,0.76200132]
[1724899253606,11.22275132,2522.2,2521.7,0.36555132]
[1724899253805,0.39643,2521.9,2521.7,0.36555132]
[1724899254405,11.22275132,2522.2,2521.7,0.36555132]
[1724899254406,0.39644,2521.8,2521.7,0.74435132]
[1724899254604,0.39643,2521.9,2521.7,0.74435132]
[1724899254814,0.39642,2522.0,2521.7,1.14080132]
[1724899255306,0.39642,2521.9,2521.7,1.14080132]
[1724899255507,0.39642,2521.9,2521.7,0.74435132]
[1724899256602,0.39644,2521.8,2521.7,0.00595132]
[1724899257008,4.36204,2521.8,2521.7,0.00595132]
[1724899258502,0.39644,2521.8,2521.7,0.00595132]
[1724899260204,4.36204,2521.8,2521.7,0.00595132]
[1724899260412,0.39644,2521.8,2521.7,0.00595132]
[1724899261117,4.36204,2521.8,2521.7,0.00595132]
[1724899261813,5.35314,2521.8,2521.7,0.00595132]
[1724899262017,4.73624,2521.8,2521.7,0.00595132]
[1724899262216,0.39644,2521.8,2521.7,0.00595132]
[1724899265505,4.36204,2521.8,2521.7,0.00595132]
[1724899265714,0.39652,2521.3,2521.2,3.2078]
[1724899266716,1.72137,2521.7,2521.2,3.60433]
[1724899266919,0.39649,2521.5,2521.3,0.39651]
[1724899267415,0.3965,2521.4,2521.2,3.60432]
[1724899269422,0.39649,2521.5,2521.2,3.60432]
[1724899269622,0.39649,2521.5,2521.3,0.39651]
[1724899270027,0.39645,2521.8,2521.2,3.2078]
[1724899270324,0.39645,2521.8,2521.5,0.39648]
[1724899270523,0.39646,2521.7,2521.5,0.39648]
[1724899271812,0.39645,2521.8,2521.2,3.2078]
[1724899272024,0.39645,2521.8,2521.6,0.39646]
[1724899272231,0.39645,2521.7,2521.5,0.39648]
[1724899272426,3.2078,2521.9,2521.5,3.2078]
[1724899272722,0.40233132,2522.2,2521.6,0.7314]
[1724899272914,0.00595132,2522.2,2522.1,0.39639]
[1724899273729,0.40233132,2522.2,2522.0,0.3964]
[1724899273929,0.40233132,2522.2,2521.9,41.19641]
[1724899274121,0.40233132,2522.2,2521.9,40.8]
[1724899274322,0.00595132,2522.2,2522.1,0.39639]
[1724899274627,0.00595132,2522.2,2522.0,0.3964]
[1724899275733,0.00595132,2522.2,2522.1,0.39639]
[1724899276226,0.00595132,2522.2,2521.9,40.8]
[1724899276227,0.00595132,2522.2,2522.0,0.3964]
[1724899276824,0.00595132,2522.2,2521.9,40.8]
[1724899276825,0.39639,2522.1,2521.9,40.8]
[1724899277021,0.39639,2522.1,2521.8,3.2078]
[1724899277428,0.39639,2522.1,2521.8,44.0078]
[1724899277639,0.39639,2522.1,2521.8,41.19644]
[1724899277956,0.40233132,2522.2,2521.8,41.19644]
[1724899278139,0.40233132,2522.2,2521.8,0.39644]
[1724899279054,0.00595132,2522.2,2521.9,0.39642]
[1724899279645,0.00595132,2522.2,2521.8,3.2078]
[1724899279846,0.00595132,2522.2,2521.9,0.39641]
[1724899280751,0.00595132,2522.2,2522.0,0.3964]
[1724899281557,0.00595132,2522.2,2521.7,44.599]
[1724899281558,0.40233132,2522.2,2521.7,44.599]
[1724899281754,0.39639,2522.1,2521.8,0.39642]
[1724899283149,0.40233132,2522.2,2521.9,0.39642]
[1724899283347,0.39639,2522.1,2521.9,0.39642]
[1724899283548,0.39639,2522.1,2521.8,0.39643]
[1724899283749,0.40233132,2522.2,2521.9,0.39642]
[1724899284247,0.39639,2522.1,2521.9,0.39642]
[1724899285152,0.39639,2522.1,2521.8,0.39643]
[1724899286152,0.00595132,2522.2,2521.9,0.39642]
[1724899286358,0.3964,2522.1,2521.8,0.39643]
[1724899287057,0.39641,2522.0,2521.8,0.39643]
[1724899287260,0.39641,2522.0,2521.7,44.99544]
[1724899287757,0.00595132,2522.2,2521.7,41.169]
[1724899287946,0.39644,2521.8,2521.7,0.369]
[1724899288347,0.39644,2521.8,2521.7,4.3346]
[1724899288552,0.39643,2521.9,2521.7,4.3346]
[1724899288754,0.39643,2521.9,2521.7,0.369]
[1724899288950,0.39639,2522.1,2521.7,0.369]
[1724899289155,0.40233132,2522.2,2522.0,0.3964]
[1724899289861,0.40233132,2522.2,2522.1,0.39639]
[1724899289862,0.00595132,2522.2,2522.1,0.39639]
[1724899290052,0.00595132,2522.2,2522.1,4.36119]
[1724899292272,0.00595132,2522.2,2522.1,4.72509]
[1724899294960,0.00595132,2522.2,2522.1,10.72509]
[1724899295271,0.39624,2523.1,2522.8,0.39627]
[1724899295473,0.39625,2523.0,2522.9,3.2078]
[1724899295775,0.39629,2522.8,2522.4,40.8]
[1724899296065,0.39631,2522.7,2522.4,41.19634]
[1724899296269,0.39631,2522.6,2522.3,7.80109132]
[1724899296458,0.39631,2522.6,2522.4,0.39634]
[1724899296659,0.39631,2522.6,2522.3,7.40475132]
[1724899296660,0.38315132,2522.9,2522.3,7.80110132]
[1724899296856,0.39632,2522.6,2522.3,7.80110132]
[1724899297568,0.39632,2522.6,2522.4,0.39634]
[1724899298361,0.39634,2522.5,2522.3,3.21375132]
[1724899298763,0.39632,2522.6,2522.3,3.61011132]
[1724899298957,0.39628,2522.8,2522.4,0.39633]
[1724899299161,3.21375132,2522.9,2522.3,6.64375132]
[1724899299362,0.39629,2522.8,2522.5,0.39632]
[1724899300071,3.21375132,2522.9,2522.3,6.64375132]
[1724899300072,0.00595132,2522.9,2522.6,6.6378]
[1724899300268,0.00595132,2522.9,2522.8,0.39628]
[1724899300465,0.00595132,2522.9,2522.8,0.75718]
[1724899300767,0.00595132,2522.9,2522.8,4.72118]
[1724899301079,0.00595132,2522.9,2522.8,8.15118]
[1724899302272,0.00595132,2522.9,2522.8,15.14189]
[1724899303661,0.00595132,2522.9,2522.8,9.14189]
[1724899304973,0.78405,2523.7,2522.8,14.74561]
[1724899305169,4.19802,2524.1,2523.5,0.39616]
[1724899305368,0.39613,2523.8,2523.5,0.39616]
[1724899305774,0.3639,2524.0,2523.5,0.39616]
[1724899305972,0.3639,2524.0,2523.4,0.39618]
[1724899305973,0.39615,2523.7,2523.4,0.39618]
[1724899306774,0.39611,2523.9,2523.7,0.39613]
[1724899307282,0.39611,2523.9,2523.6,0.39615]
[1724899307778,0.39611,2523.9,2523.7,0.39614]
[1724899308074,0.76386851,2524.0,2523.5,3.59105132]
[1724899308278,0.76386851,2524.0,2523.7,0.39613]
[1724899308479,0.39611,2523.9,2523.7,0.39613]
[1724899308979,0.39613,2523.8,2523.6,0.39614]
[1724899309180,0.36776851,2524.0,2523.5,0.00595132]
[1724899309478,0.39616,2523.6,2523.5,0.00595132]
[1724899312681,0.39615,2523.7,2523.5,0.40212132]
[1724899313073,0.39613,2523.8,2523.5,0.40212132]
[1724899313477,0.39614,2523.7,2523.5,0.40212132]
[1724899314175,0.39613,2523.8,2523.5,0.00595132]
[1724899314383,0.39612,2523.9,2523.7,0.39614]
[1724899314882,4.35852,2523.9,2523.6,0.39615]
[1724899315083,0.39612,2523.9,2523.6,0.39615]
[1724899315285,0.36776851,2524.0,2523.7,0.39613]
[1724899315469,0.76386851,2524.0,2523.7,0.39613]
[1724899315874,0.36776851,2524.0,2523.5,3.21375132]
[1724899316079,0.76385851,2524.0,2523.8,3.60391]
[1724899316270,0.76385851,2524.0,2523.8,3.2078]
[1724899317279,0.76385851,2524.0,2523.8,3.60392]
[1724899317784,0.36776851,2524.0,2523.8,3.60392]
[1724899317970,0.76386851,2524.0,2523.8,3.60392]
[1724899318170,0.00386851,2524.0,2523.9,0.39611]
[1724899320071,0.00386851,2524.0,2523.9,4.35851]
[1724899320274,0.00386851,2524.0,2523.9,8.14091]
[1724899320478,0.00386851,2524.0,2523.9,14.14091]
[1724899320982,0.00386851,2524.0,2523.9,15.13119]
[1724899321488,4.59096,2524.9,2524.6,0.39599]
[1724899321777,4.59096,2524.9,2524.0,0.99024]
[1724899321778,0.39596,2524.9,2524.3,3.43]
[1724899321984,0.39596,2524.9,2524.6,0.39599]
[1724899322187,0.39596,2524.9,2524.2,3.2078]
[1724899322188,3.8131,2525.0,2524.2,3.2078]
[1724899322488,0.39603,2524.5,2524.2,3.60385]
[1724899322683,0.39603,2524.4,2524.2,3.2078]
[1724899323589,0.39603,2524.4,2524.1,4.58707]
[1724899324691,0.39606,2524.2,2524.1,4.191]
[1724899324985,0.39608,2524.1,2523.9,0.3524]
[1724899325288,0.39609,2524.0,2523.9,0.3524]
[1724899325890,0.39609,2524.1,2523.9,0.74851]
[1724899326085,0.39607,2524.2,2523.9,0.74851]
[1724899326474,0.3533,2524.3,2523.9,0.74851]
[1724899326475,0.39608,2524.1,2523.9,0.74851]
[1724899326686,0.39608,2524.1,2523.9,0.3524]
[1724899326888,0.39608,2524.1,2523.9,0.74851]
[1724899327289,0.39608,2524.1,2523.9,0.3524]
[1724899328189,0.39609,2524.0,2523.9,0.3524]
[1724899328685,0.39609,2524.0,2523.8,3.2078]
[1724899328686,0.39611,2523.9,2523.8,3.2078]
[1724899329381,0.39614,2523.7,2523.6,0.3575]
[1724899329587,3.8077,2524.1,2523.6,0.3575]
[1724899329885,0.39613,2523.8,2523.6,0.3575]
[1724899330793,0.3777,2524.1,2523.6,0.75365]
[1724899330985,0.39613,2523.8,2523.6,0.3575]
[1724899331186,0.39613,2523.8,2523.6,0.75365]
[1724899331491,0.39612,2523.9,2523.6,0.75365]
[1724899331881,0.39612,2523.9,2523.6,3.96145]
[1724899332498,0.3533,2524.3,2523.6,6.9953]
[1724899332787,0.39608,2524.1,2523.9,0.3961]
[1724899332981,0.39607,2524.2,2523.9,0.3961]
[1724899333294,0.39607,2524.2,2524.0,0.39609]
[1724899333996,0.39607,2524.2,2523.9,0.3961]
[1724899335393,0.3533,2524.3,2523.9,0.3961]
[1724899335394,0.39608,2524.1,2523.9,0.3961]
[1724899335794,0.39613,2523.8,2523.6,7.39145]
[1724899335997,0.39612,2523.9,2523.7,0.39613]
[1724899336794,3.7833,2524.3,2523.6,6.9953]
[1724899337094,0.39608,2524.1,2523.9,0.3961]
[1724899337294,0.39608,2524.1,2524.0,0.38]
[1724899337896,0.39606,2524.2,2524.0,0.38]
[1724899340694,0.39608,2524.1,2524.0,0.38]
[1724899341292,3.9616,2524.1,2523.7,3.2078]
[1724899341592,1.34346,2524.3,2523.7,3.60393]
[1724899341801,0.39611,2523.9,2523.7,3.60393]
[1724899342802,0.39611,2523.9,2523.7,0.39613]
[1724899343104,0.3961,2524.0,2523.8,0.39612]
[1724899343500,0.3961,2524.0,2523.6,7.3464]
[1724899343501,0.39608,2524.1,2523.9,0.39611]
[1724899343704,0.39607,2524.2,2523.9,0.39611]
[1724899344112,0.39605,2524.3,2523.8,3.43]
[1724899344405,0.39604,2524.4,2524.1,3.82607]
[1724899344598,0.39604,2524.4,2524.2,0.39606]
[1724899344798,0.39602,2524.5,2524.3,0.39605]
[1724899345001,0.39602,2524.5,2524.3,0.39604]
[1724899345203,0.39601,2524.6,2524.4,0.39602]
[1724899345499,0.39601,2524.6,2524.4,0.39603]
[1724899346908,0.39601,2524.6,2524.3,0.39603]
[1724899347109,0.3593,2524.7,2524.2,1.14215]
[1724899347313,0.39604,2524.4,2524.2,1.14215]
[1724899347904,0.396,2524.6,2524.3,7.03384]
[1724899348412,0.39602,2524.5,2524.3,7.03384]
[1724899348609,0.396,2524.6,2524.3,7.03384]
[1724899348908,0.39601,2524.5,2524.3,7.03384]
[1724899349311,0.39603,2524.4,2524.3,6.6378]
[1724899349607,0.39603,2524.4,2524.3,3.2078]
[1724899350509,0.39603,2524.4,2524.2,0.7461]
[1724899351101,0.39605,2524.3,2524.2,0.7461]
[1724899353214,1.38617,2524.3,2524.2,0.7461]
[1724899353400,0.39609,2524.0,2523.9,3.5838]
[1724899354514,0.39609,2524.0,2523.9,3.2078]
[1724899357818,1.38633,2524.0,2523.9,3.2078]
[1724899359315,0.24466902,2524.1,2523.9,3.2078]
[1724899359316,0.39608,2524.1,2523.9,3.2078]
[1724899359707,0.39609,2524.0,2523.9,3.2078]
[1724899362913,3.2078,2524.4,2524.0,0.39609]
[1724899363113,0.39607,2524.2,2523.9,3.6039]
[1724899363707,0.39607,2524.2,2524.0,0.39609]
[1724899363909,0.39607,2524.2,2523.9,3.6039]
[1724899364109,0.39607,2524.2,2524.0,0.39609]
[1724899365232,0.3547,2524.6,2524.1,0.39608]
[1724899365412,0.39605,2524.3,2524.2,0.7365]
[1724899366416,0.60389347,2524.6,2524.2,0.7365]
[1724899366417,0.39604,2524.4,2524.2,0.7365]
[1724899367315,0.39605,2524.3,2524.2,0.7365]
[1724899367525,0.39602,2524.5,2524.2,1.13255]
[1724899367823,0.39602,2524.5,2524.2,0.7365]
[1724899368018,0.39603,2524.4,2524.2,0.7365]
[1724899369726,5.19669442,2524.7,2523.9,3.2078]
[1724899369924,0.39607,2524.2,2523.9,3.5607]
[1724899370521,0.39607,2524.2,2523.9,3.95681]
[1724899370911,0.99004,2524.5,2523.9,3.5607]
[1724899371114,0.39608,2524.1,2523.9,3.5607]
[1724899371314,0.39608,2524.1,2523.9,3.95681]
[1724899371514,0.39607,2524.2,2523.9,3.95681]
[1724899372827,0.39608,2524.1,2523.9,3.5607]
[1724899373420,0.39607,2524.2,2523.9,3.9568]
[1724899374532,0.3598,2524.4,2523.9,3.9568]
[1724899374533,0.39608,2524.1,2523.9,3.9568]
[1724899374824,0.39608,2524.1,2523.9,3.5607]
[1724899375030,0.39609,2524.0,2523.9,3.2078]
[1724899375631,0.39616,2523.6,2523.5,0.00595132]
[1724899376126,5.34896,2523.6,2523.5,0.00595132]
[1724899376520,0.39623,2523.1,2523.0,3.2078]
[1724899376717,0.39623,2523.2,2523.0,3.2078]
[1724899376922,3.2078,2523.5,2523.0,4.6378]
[1724899377125,3.2078,2523.5,2523.4,1.82619]
[1724899377437,1.43,2523.8,2523.2,1.82621]
[1724899377618,1.43,2523.8,2523.2,2.18395132]
[1724899377619,0.39618,2523.5,2523.2,2.18395132]
[1724899378118,0.39616,2523.6,2523.2,1.15017132]
[1724899378931,0.39616,2523.6,2523.2,1.15015132]
[1724899379233,0.40210132,2523.7,2523.3,0.39619]
[1724899379731,0.40210132,2523.7,2523.4,0.39618]
[1724899380230,0.39616,2523.6,2523.3,0.39619]
[1724899380431,0.39616,2523.6,2523.2,1.15016132]
[1724899381219,0.39617,2523.5,2523.2,0.75395132]
[1724899381433,0.39617,2523.5,2523.2,1.15017132]
[1724899381634,0.00595132,2523.7,2523.2,0.75395132]
[1724899381829,0.3962,2523.3,2523.2,0.75395132]
[1724899382832,0.39619,2523.4,2523.2,0.75395132]
[1724899383826,0.40210132,2523.7,2523.4,0.39619]
[1724899384338,0.39616,2523.6,2523.3,0.39619]
[1724899384930,0.40210132,2523.7,2523.4,0.39619]
[1724899385732,0.40210132,2523.7,2523.3,0.39619]
[1724899385928,0.39616,2523.6,2523.3,0.39619]
[1724899388931,0.00595132,2523.7,2523.3,0.3962]
[1724899389140,0.39616,2523.6,2523.3,0.3962]
[1724899389747,0.00595132,2523.7,2523.3,3.2078]
[1724899389929,0.00595132,2523.7,2523.6,0.39616]
[1724899390329,0.00595132,2523.7,2523.6,4.71366]
[1724899391047,0.00595132,2523.7,2523.6,45.51366]
[1724899391538,0.00595132,2523.7,2523.6,48.72146]
[1724899392144,0.00595132,2523.7,2523.6,44.75906]
[1724899392436,0.00595132,2523.7,2523.6,48.72146]
[1724899393037,0.00595132,2523.7,2523.6,52.15146]
[1724899393843,0.00595132,2523.7,2523.6,51.7553]
[1724899394236,0.00595132,2523.7,2523.6,48.72146]
[1724899397146,0.00595132,2523.7,2523.6,7.92146]
[1724899397641,1.37012,2524.4,2523.9,0.3961]
[1724899397642,0.39607,2524.2,2523.9,0.3961]
[1724899397960,0.39605,2524.3,2524.0,0.76269]
[1724899398132,3.95974,2524.4,2524.1,0.39607]
[1724899398334,0.75194,2524.4,2524.1,0.39607]
[1724899398837,0.75194,2524.4,2524.0,0.76268]
[1724899399036,0.75194,2524.4,2524.1,0.39608]
[1724899399243,3.97102,2524.5,2524.2,0.39605]
[1724899399745,3.97102,2524.5,2524.1,0.39607]
[1724899400044,3.97102,2524.5,2524.2,0.39606]
[1724899400936,3.97102,2524.5,2524.1,0.3854]
[1724899400937,3.575,2524.5,2524.1,0.3854]
[1724899401136,0.3559,2524.7,2524.4,0.39602]
[1724899401345,0.3559,2524.7,2524.5,0.75971]
[1724899401540,3.60377,2524.8,2524.5,0.75971]
[1724899402141,0.39597,2524.8,2524.5,0.75971]
[1724899402346,0.3596,2525.1,2524.7,0.39597]
[1724899402646,0.75553,2525.1,2524.8,0.39597]
[1724899402844,3.2078,2525.3,2524.9,0.39594]
[1724899403037,0.39592,2525.2,2524.7,3.8188]
[1724899403240,0.39592,2525.2,2524.8,0.39595]
[1724899403640,0.39592,2525.1,2524.8,0.39595]
[1724899403946,0.39592,2525.1,2524.8,0.39596]
[1724899404539,0.39591,2525.2,2524.8,0.39596]
[1724899405137,0.39591,2525.2,2524.7,0.3888]
[1724899405138,3.9749,2525.3,2525.0,0.39594]
[1724899405343,3.9749,2525.3,2524.9,0.39594]
[1724899405646,3.9749,2525.3,2525.0,0.77094]
[1724899405851,3.579,2525.3,2524.8,0.39596]
[1724899406250,0.39593,2525.1,2524.8,0.39596]
[1724899406750,0.39593,2525.1,2524.8,0.39597]
[1724899406951,0.39594,2525.0,2524.7,1.15977]
[1724899407147,4.56876,2525.3,2524.7,1.15977]
[1724899407545,0.39595,2525.0,2524.7,1.15977]
[1724899409853,0.39595,2525.0,2524.7,4.36757]
[1724899410747,4.56876,2525.3,2524.7,4.36757]
[1724899410948,0.39595,2525.0,2524.7,4.36757]
[1724899411144,0.39595,2524.9,2524.7,4.36757]
[1724899411350,0.39595,2524.9,2524.7,3.9716]
[1724899411551,0.39597,2524.8,2524.7,3.9716]
[1724899412449,0.39597,2524.8,2524.7,3.2078]
[1724899412654,0.39598,2524.7,2524.6,0.00595132]
[1724899412852,0.77418,2524.7,2524.6,0.00595132]
[1724899413161,4.73498,2524.7,2524.6,0.00595132]
[1724899413861,5.74320551,2524.7,2524.6,0.00595132]
[1724899414554,8.95100551,2524.7,2524.6,0.00595132]
[1724899414755,0.39609,2524.0,2523.9,4.191]
[1724899414946,0.19428537,2524.3,2523.5,3.43]
[1724899415151,6.6378,2524.4,2523.7,3.82614]
[1724899415152,0.3961,2524.0,2523.7,3.82614]
[1724899415360,0.39609,2524.1,2523.8,0.39611]
[1724899415652,0.39609,2524.1,2523.9,0.3895]
[1724899415853,0.40202132,2524.2,2523.9,0.7856]
[1724899419463,0.39608,2524.1,2523.9,0.7856]
[1724899419660,0.39608,2524.1,2523.9,0.3895]
[1724899420261,0.40202132,2524.2,2523.9,0.7856]
[1724899421166,0.00595132,2524.2,2524.1,0.39608]
[1724899421960,0.00595132,2524.2,2524.0,0.39608]
[1724899422462,0.00595132,2524.2,2524.1,0.39608]
[1724899423967,0.00595132,2524.2,2524.1,7.78768]
[1724899424161,0.00595132,2524.2,2524.1,10.99548]
[1724899424764,0.00595132,2524.2,2524.1,17.98568]
[1724899424967,0.39597,2524.8,2524.6,0.39599]
[1724899425170,0.39597,2524.8,2524.7,0.3647]
[1724899425867,3.2078,2525.2,2525.1,0.39592]
[1724899426071,3.60371,2525.2,2525.0,0.39593]
[1724899426271,3.2078,2525.2,2525.0,0.39593]
[1724899427173,3.2078,2525.2,2525.1,0.39592]
[1724899427470,3.60371,2525.2,2525.0,0.39593]
[1724899428267,3.2078,2525.2,2525.0,0.78383]
[1724899428469,3.60371,2525.2,2525.0,0.78383]
[1724899428670,0.39592,2525.1,2525.0,0.3879]
[1724899428972,0.39592,2525.1,2524.8,0.39596]
[1724899429273,0.78172,2525.1,2524.8,0.39596]
[1724899429665,0.3858,2525.1,2524.9,0.39595]
[1724899430169,0.78172,2525.1,2524.9,0.39595]
[1724899430370,0.78172,2525.1,2524.7,7.0025]
[1724899430564,0.78172,2525.1,2524.8,41.19596]
[1724899431468,0.3858,2525.1,2524.9,0.39595]
[1724899431672,0.39591,2525.2,2524.9,0.39595]
[1724899431862,0.39594,2525.0,2524.7,7.39847]
[1724899432064,0.39594,2525.0,2524.8,0.39597]
[1724899432473,0.39589,2525.3,2525.0,0.39593]
[1724899432770,0.39589,2525.3,2525.1,0.39592]
[1724899433068,0.39588,2525.4,2525.1,0.39592]
[1724899433270,0.39588,2525.4,2525.2,0.3832]
[1724899434263,1.13847,2525.5,2525.2,0.7791]
[1724899434459,0.01824371,2525.4,2525.2,0.7791]
[1724899434665,0.41411371,2525.4,2525.2,0.3832]
[1724899434970,0.01824371,2525.3,2525.2,0.3832]
[1724899437370,0.39587,2525.4,2525.2,0.3832]
[1724899437568,0.01824405,2525.3,2525.2,8.1691]
[1724899437767,0.00634141,2525.6,2525.4,0.39586]
[1724899437966,0.39582,2525.8,2525.5,0.3561]
[1724899438169,0.41402118,2525.7,2525.5,0.3561]
[1724899438365,0.01819118,2525.6,2525.5,0.3561]
[1724899438565,0.01819132,2525.6,2525.5,0.3561]
[1724899439059,0.01819132,2525.6,2525.5,10.71116]
[1724899439266,0.62400608,2526.4,2525.5,10.6835]
[1724899439468,0.01730073,2526.3,2526.1,3.43]
[1724899439971,0.01730073,2526.3,2526.2,0.39575]
[1724899440171,0.01730073,2526.6,2526.2,0.7485]
[1724899440372,0.41300073,2526.6,2526.2,1.14424]
[1724899440569,0.01730073,2526.5,2526.2,1.14424]
[1724899440870,0.01729486,2526.4,2526.2,1.14424]
[1724899441071,0.01729486,2526.3,2526.2,1.14424]
[1724899441466,0.01729486,2526.5,2526.2,1.14424]
[1724899441666,0.01729486,2526.5,2525.5,5.54881]
[1724899441667,0.39576,2526.2,2525.9,3.43]
[1724899441868,0.01729486,2526.1,2525.9,3.43]
[1724899442069,0.01729486,2526.4,2526.1,0.39576]
[1724899442265,0.01729672,2526.3,2526.2,0.3858]
[1724899442470,0.01729672,2526.4,2526.2,1.51544]
[1724899442662,0.01729672,2526.3,2526.2,1.51544]
[1724899442870,3.2078,2526.5,2526.2,1.51544]
[1724899443273,3.2078,2526.5,2526.3,0.39573]
[1724899443877,0.76378,2526.7,2526.3,0.39573]
[1724899444379,0.39569,2526.6,2526.3,3.82573]